[Event "Open Nuevo Centro. Jornada 2"]
[Site "Chess.com"]
[Date "2020.06.26"]
[Round "8"]
[White "Reig Albero, Ferran"]
[Black "Marín Corresa, Arturo"]
[Result "0-1"]
[WhiteElo "1818"]
[BlackElo "2192"]
[TimeControl "180+2"]
[EndTime "11:59:13 PDT"]
[Termination "Victoria de Estivella por abandono"]

1. e4 {[%clk 0:03:01]} 1... c5 {[%clk 0:03:00.2]} 2. Nf3 {[%clk 0:03:01.5]} 2...
Nc6 {[%clk 0:03:00.9]} 3. d4 {[%clk 0:03:02.5]} 3... cxd4 {[%clk 0:03:01.6]} 4.
Nxd4 {[%clk 0:03:03.5]} 4... Nf6 {[%clk 0:03:02.4]} 5. Nc3 {[%clk 0:03:04.6]}
5... e6 {[%clk 0:03:02.9]} 6. Ndb5 {[%clk 0:03:04.6]} 6... d6 {[%clk 0:03:01.8]}
7. Bf4 {[%clk 0:03:05.1]} 7... e5 {[%clk 0:03:02.6]} 8. Bg5 {[%clk 0:03:06.6]}
8... a6 {[%clk 0:03:04]} 9. Bxf6 {[%clk 0:03:05.1]} 9... gxf6 {[%clk 0:03:04.7]}
10. Na3 {[%clk 0:03:06.6]} 10... b5 {[%clk 0:03:05.6]} 11. Nd5 {[%clk
0:03:07.2]} 11... Bg7 {[%clk 0:03:06.4]} 12. c3 {[%clk 0:03:08.2]} 12... Ne7
{[%clk 0:02:59.8]} 13. Nxe7 {[%clk 0:03:02.5]} 13... Qxe7 {[%clk 0:03:00.1]} 14.
Nc2 {[%clk 0:03:02.6]} 14... Bb7 {[%clk 0:02:58.3]} 15. Qg4 {[%clk 0:02:51.2]}
15... Kf8 {[%clk 0:02:40.6]} 16. Ne3 {[%clk 0:02:48.7]} 16... h5 {[%clk
0:02:40.8]} 17. Qh4 {[%clk 0:02:42.9]} 17... f5 {[%clk 0:01:49.2]} 18. Qxe7+
{[%clk 0:02:39.5]} 18... Kxe7 {[%clk 0:01:50]} 19. Nxf5+ {[%clk 0:02:40.4]}
19... Kf6 {[%clk 0:01:51.9]} 20. Nxd6 {[%clk 0:02:38.6]} 20... Bc6 {[%clk
0:01:51.6]} 21. f3 {[%clk 0:02:37.4]} 21... Bh6 {[%clk 0:01:50.1]} 22. Nf5
{[%clk 0:02:30.4]} 22... Rad8 {[%clk 0:01:44.2]} 23. Be2 {[%clk 0:02:30.5]}
23... h4 {[%clk 0:01:40.8]} 24. Rd1 {[%clk 0:02:23.6]} 24... Rxd1+ {[%clk
0:01:37.2]} 25. Bxd1 {[%clk 0:02:24]} 25... Bf4 {[%clk 0:01:33.4]} 26. Kf2
{[%clk 0:02:17.3]} 26... Rd8 {[%clk 0:01:27.2]} 27. g3 {[%clk 0:02:06.1]} 27...
Bc1 {[%clk 0:01:21.5]} 28. Bb3 {[%clk 0:01:33.9]} 28... Bxb2 {[%clk 0:01:19.1]}
29. Nxh4 {[%clk 0:01:31.2]} 29... Bxc3 {[%clk 0:01:15.2]} 30. Rd1 {[%clk
0:01:30]} 30... Rxd1 {[%clk 0:01:10.5]} 31. Bxd1 {[%clk 0:01:29.6]} 31... a5
{[%clk 0:01:11.1]} 32. Bc2 {[%clk 0:01:22.7]} 32... a4 {[%clk 0:01:07.8]} 33. f4
{[%clk 0:01:21]} 33... Bd7 {[%clk 0:00:57.4]} 34. Nf3 {[%clk 0:01:20.5]} 34...
Be6 {[%clk 0:00:52.3]} 35. fxe5+ {[%clk 0:01:13.9]} 35... Bxe5 {[%clk
0:00:52.3]} 36. Nxe5 {[%clk 0:01:13]} 36... Kxe5 {[%clk 0:00:53]} 37. Bb1 {[%clk
0:01:13.8]} 37... Kd4 {[%clk 0:00:51.8]} 38. h4 {[%clk 0:01:14.3]} 38... Bg4
{[%clk 0:00:49.8]} 39. a3 {[%clk 0:01:02.7]} 39... Kc3 {[%clk 0:00:48.7]} 40.
Ba2 {[%clk 0:01:03.3]} 40... f6 {[%clk 0:00:47.4]} 41. Ke3 {[%clk 0:01:00.2]}
41... Kb2 {[%clk 0:00:46.3]} 42. Bd5 {[%clk 0:01:00.7]} 42... Kxa3 {[%clk
0:00:46.4]} 43. Kd4 {[%clk 0:01:00.4]} 43... b4 {[%clk 0:00:35.8]} 44. e5 {[%clk
0:01:01.2]} 44... fxe5+ {[%clk 0:00:36]} 45. Kxe5 {[%clk 0:01:02.7]} 45... Kb2
{[%clk 0:00:36.2]} 46. Kd4 {[%clk 0:01:03.3]} 46... b3 {[%clk 0:00:26.4]} 47.
Kc4 {[%clk 0:01:02.7]} 47... a3 {[%clk 0:00:24.9]} 48. Kb4 {[%clk 0:00:59.8]}
48... a2 {[%clk 0:00:24.5]} 0

[Event "Open Nuevo Centro. Jornada 2"]
[Site "Chess.com"]
[Date "2020.06.26"]
[Round "8"]
[White "Aymerich Rosell, Pablo"]
[Black "Yatseta Fernandez, Marc Kazymyr"]
[Result "1-0"]
[WhiteElo "1989"]
[BlackElo "1489"]
[TimeControl "180+2"]
[EndTime "11:59:13 PDT"]
[Termination "Victoria de jasikevic por abandono"]

1. e4 {[%clk 0:03:01.9]} 1... e5 {[%clk 0:03:00.7]} 2. Nf3 {[%clk 0:03:02.5]}
2... Nc6 {[%clk 0:03:00.9]} 3. Bb5 {[%clk 0:03:03.1]} 3... a6 {[%clk 0:03:00.8]}
4. Ba4 {[%clk 0:03:04.1]} 4... d6 {[%clk 0:03:01.6]} 5. O-O {[%clk 0:03:03.8]}
5... Nf6 {[%clk 0:03:01.5]} 6. Re1 {[%clk 0:03:04.2]} 6... Be7 {[%clk
0:02:59.5]} 7. d4 {[%clk 0:02:56]} 7... b5 {[%clk 0:02:58.7]} 8. Bb3 {[%clk
0:02:55.9]} 8... exd4 {[%clk 0:02:59]} 9. c3 {[%clk 0:02:50.3]} 9... dxc3 {[%clk
0:02:55.3]} 10. Nxc3 {[%clk 0:02:50.9]} 10... O-O {[%clk 0:02:56.8]} 11. a4
{[%clk 0:02:41.7]} 11... Be6 {[%clk 0:02:51.7]} 12. Bxe6 {[%clk 0:02:38.7]}
12... fxe6 {[%clk 0:02:53.6]} 13. axb5 {[%clk 0:02:38.7]} 13... axb5 {[%clk
0:02:55]} 14. Rxa8 {[%clk 0:02:39]} 14... Qxa8 {[%clk 0:02:56.9]} 15. Nxb5
{[%clk 0:02:39]} 15... Qb7 {[%clk 0:02:40.7]} 16. Qb3 {[%clk 0:02:21.8]} 16...
Kh8 {[%clk 0:02:28.5]} 17. Ng5 {[%clk 0:01:58.3]} 17... d5 {[%clk 0:02:01.1]}
18. Nxe6 {[%clk 0:01:45]} 18... dxe4 {[%clk 0:02:01.2]} 19. Nxf8 {[%clk
0:01:42.8]} 19... Bxf8 {[%clk 0:02:02.6]} 20. Qf7 {[%clk 0:01:25.9]} 20... Bb4
{[%clk 0:01:41.3]} 21. Nc3 {[%clk 0:01:26]} 21... Bxc3 {[%clk 0:01:21.1]} 22.
bxc3 {[%clk 0:01:25.4]} 22... Ne5 {[%clk 0:01:11.3]} 23. Qf8+ {[%clk 0:01:20.6]}
23... Ng8 {[%clk 0:01:11.7]} 24. Be3 {[%clk 0:01:10.1]} 24... Nd3 {[%clk
0:01:01.2]} 25. Bd4 {[%clk 0:01:07.4]} 25... c5 {[%clk 0:00:59.5]} 26. Bxg7+
{[%clk 0:00:52.4]} 26... Qxg7 {[%clk 0:00:59]} 27. Qxg7+ {[%clk 0:00:52.7]}
27... Kxg7 {[%clk 0:01:00.9]} 28. Rxe4 {[%clk 0:00:53.1]} 28... Nf6 {[%clk
0:00:56.2]} 29. Re3 {[%clk 0:00:49.4]} 29... c4 {[%clk 0:00:53.3]} 30. Re7+
{[%clk 0:00:48.8]} 30... Kg6 {[%clk 0:00:53.7]} 31. Rc7 {[%clk 0:00:49.1]} 31...
Ne4 {[%clk 0:00:41.6]} 32. Rxc4 {[%clk 0:00:43.2]} 32... Nexf2 {[%clk
0:00:40.6]} 33. Rd4 {[%clk 0:00:39.5]} 33... Kf5 {[%clk 0:00:38]} 34. c4 {[%clk
0:00:29.5]} 34... Ke5 {[%clk 0:00:36.2]} 35. Rd7 {[%clk 0:00:28.8]} 35... h6
{[%clk 0:00:20.9]} 36. Rd8 {[%clk 0:00:21.7]} 36... Kf5 {[%clk 0:00:18]} 37.
Rf8+ {[%clk 0:00:18.4]} 37... Ke4 {[%clk 0:00:18.5]} 38. Rxf2 {[%clk 0:00:19]}
38... Nxf2 {[%clk 0:00:19.6]} 39. Kxf2 {[%clk 0:00:20.1]} 39... Kd4 {[%clk
0:00:21.3]} 40. Kg3 {[%clk 0:00:20.7]} 40... Kxc4 {[%clk 0:00:21.7]} 41. Kg4
{[%clk 0:00:21.9]} 41... Kd5 {[%clk 0:00:22.6]} 42. Kh5 {[%clk 0:00:23.1]} 1

[Event "Open Nuevo Centro. Jornada 2"]
[Site "Chess.com"]
[Date "2020.06.26"]
[Round "8"]
[White "Casado Andreu, David"]
[Black "Martínez Cuenca, Jose Andrés"]
[Result "1-0"]
[WhiteElo "1628"]
[BlackElo "1119"]
[TimeControl "180+2"]
[EndTime "11:59:14 PDT"]
[Termination "Victoria de dave6635 por tiempo"]

1. e4 {[%clk 0:03:01.9]} 1... c5 {[%clk 0:03:00.9]} 2. Nf3 {[%clk 0:03:02.9]}
2... g6 {[%clk 0:03:01.4]} 3. d4 {[%clk 0:03:04.8]} 3... cxd4 {[%clk 0:03:01.2]}
4. Nxd4 {[%clk 0:03:05.9]} 4... Nc6 {[%clk 0:03:02.3]} 5. Nc3 {[%clk 0:03:04.8]}
5... Bg7 {[%clk 0:03:02.8]} 6. Be3 {[%clk 0:03:06.2]} 6... d6 {[%clk 0:03:00.7]}
7. Qd2 {[%clk 0:03:05.6]} 7... Nf6 {[%clk 0:02:56.9]} 8. Bc4 {[%clk 0:02:32.7]}
8... O-O {[%clk 0:02:54.1]} 9. Bb3 {[%clk 0:02:32.5]} 9... Be6 {[%clk
0:02:45.1]} 10. Bxe6 {[%clk 0:02:29.8]} 10... fxe6 {[%clk 0:02:43.8]} 11. Nxe6
{[%clk 0:02:31.7]} 11... Qe8 {[%clk 0:02:38.6]} 12. Nxf8 {[%clk 0:02:32.5]}
12... Qxf8 {[%clk 0:02:39.6]} 13. O-O {[%clk 0:02:33.3]} 13... Ne5 {[%clk
0:02:37.9]} 14. Bh6 {[%clk 0:02:29.5]} 14... Bxh6 {[%clk 0:02:36.4]} 15. f4
{[%clk 0:02:28.6]} 15... Nc4 {[%clk 0:02:33.6]} 16. Qd4 {[%clk 0:02:20.7]} 16...
Nxb2 {[%clk 0:02:24.8]} 17. Rab1 {[%clk 0:02:11.7]} 17... Bg7 {[%clk 0:02:09.3]}
18. Rxb2 {[%clk 0:02:11.2]} 18... Nh5 {[%clk 0:02:03.5]} 19. Qd2 {[%clk
0:02:08.6]} 19... Rc8 {[%clk 0:01:57.2]} 20. Rb3 {[%clk 0:02:06.7]} 20... b5
{[%clk 0:01:34.2]} 21. Nxb5 {[%clk 0:02:00.3]} 21... Rc5 {[%clk 0:01:22.3]} 22.
Nd4 {[%clk 0:01:44.8]} 22... Bxd4+ {[%clk 0:01:17.2]} 23. Qxd4 {[%clk
0:01:44.8]} 23... Rxc2 {[%clk 0:01:16.3]} 24. Rbf3 {[%clk 0:01:24.5]} 24... Rxa2
{[%clk 0:01:08.8]} 25. Qd5+ {[%clk 0:01:25.2]} 25... Qf7 {[%clk 0:01:06]} 26.
Qxf7+ {[%clk 0:01:07.7]} 26... Kxf7 {[%clk 0:01:07.9]} 27. e5 {[%clk 0:01:08.6]}
27... dxe5 {[%clk 0:01:03.9]} 28. fxe5+ {[%clk 0:01:09.4]} 28... Ke6 {[%clk
0:01:04.7]} 29. g4 {[%clk 0:01:07.5]} 29... Ng7 {[%clk 0:01:03.9]} 30. h3 {[%clk
0:01:01.2]} 30... Ra4 {[%clk 0:00:59.9]} 31. Re3 {[%clk 0:00:59.7]} 31... h5
{[%clk 0:00:53.6]} 32. Rf8 {[%clk 0:00:58.5]} 32... hxg4 {[%clk 0:00:47.3]} 33.
hxg4 {[%clk 0:00:59.1]} 33... Rxg4+ {[%clk 0:00:46.1]} 34. Kh2 {[%clk
0:01:00.4]} 34... Rh4+ {[%clk 0:00:41.9]} 35. Kg3 {[%clk 0:01:01.2]} 35... Nf5+
{[%clk 0:00:39]} 36. Rxf5 {[%clk 0:01:01.5]} 36... Rh6 {[%clk 0:00:24.7]} 37.
Rf8 {[%clk 0:00:48.2]} 37... Rh5 {[%clk 0:00:19.6]} 38. Rg8 {[%clk 0:00:47.8]}
38... Kf5 {[%clk 0:00:12.6]} 39. e6 {[%clk 0:00:41.2]} 39... Rg5+ {[%clk
0:00:11]} 40. Kf2 {[%clk 0:00:42.1]} 40... Rg4 {[%clk 0:00:02.4]} 41. Rf8+
{[%clk 0:00:40.6]} 1

[Event "Open Nuevo Centro. Jornada 2"]
[Site "Chess.com"]
[Date "2020.06.26"]
[Round "8"]
[White "Cayon Pelaez, Pablo"]
[Black "Albuixech Sanz, Jorge"]
[Result "0-1"]
[WhiteElo "1733"]
[BlackElo "1627"]
[TimeControl "180+2"]
[EndTime "11:59:42 PDT"]
[Termination "Victoria de Gamyi2 por abandono"]

1. e4 {[%clk 0:03:01.9]} 1... c5 {[%clk 0:02:59.6]} 2. Nf3 {[%clk 0:03:02.7]}
2... d6 {[%clk 0:03:00.8]} 3. d4 {[%clk 0:03:03.6]} 3... cxd4 {[%clk 0:03:02.2]}
4. Nxd4 {[%clk 0:03:05.4]} 4... Nf6 {[%clk 0:03:03.1]} 5. Nc3 {[%clk 0:03:06.9]}
5... a6 {[%clk 0:03:04.2]} 6. f3 {[%clk 0:03:05.1]} 6... e5 {[%clk 0:03:04.6]}
7. Nb3 {[%clk 0:03:05.7]} 7... Be6 {[%clk 0:03:06.2]} 8. Be3 {[%clk 0:03:04.8]}
8... Be7 {[%clk 0:03:06.5]} 9. Qd2 {[%clk 0:03:05.4]} 9... O-O {[%clk 0:03:05]}
10. Be2 {[%clk 0:03:06.2]} 10... Nbd7 {[%clk 0:03:05.8]} 11. g4 {[%clk 0:03:06]}
11... b5 {[%clk 0:03:05.8]} 12. O-O-O {[%clk 0:03:02]} 12... Nb6 {[%clk
0:03:06.1]} 13. h4 {[%clk 0:02:39.8]} 13... Bc4 {[%clk 0:03:02.7]} 14. Rdg1
{[%clk 0:02:30.7]} 14... Bxe2 {[%clk 0:03:02.6]} 15. Nxe2 {[%clk 0:02:31.5]}
15... Nc4 {[%clk 0:03:03]} 16. Qd3 {[%clk 0:02:25.3]} 16... Nxe3 {[%clk
0:03:04]} 17. Qxe3 {[%clk 0:02:26.5]} 17... d5 {[%clk 0:03:02.8]} 18. g5 {[%clk
0:02:13.1]} 18... Nh5 {[%clk 0:02:44.7]} 19. Ng3 {[%clk 0:01:57.8]} 19... Nf4
{[%clk 0:02:39.6]} 20. Nf5 {[%clk 0:01:55.9]} 20... d4 {[%clk 0:02:22.7]} 21.
Qf2 {[%clk 0:01:53.6]} 21... Qc7 {[%clk 0:02:12.3]} 22. Kb1 {[%clk 0:01:50.3]}
22... d3 {[%clk 0:01:58]} 23. cxd3 {[%clk 0:01:36.1]} 23... Nxd3 {[%clk
0:01:57.8]} 24. Qe3 {[%clk 0:01:32.3]} 24... Rfd8 {[%clk 0:01:48.8]} 25. Rd1
{[%clk 0:01:23.2]} 25... Nf4 {[%clk 0:01:34.6]} 26. Rc1 {[%clk 0:01:18.7]} 26...
Qb7 {[%clk 0:01:30.6]} 27. Na5 {[%clk 0:01:05]} 27... Qd7 {[%clk 0:01:11.9]} 28.
Rhd1 {[%clk 0:00:53.7]} 28... Qe6 {[%clk 0:00:58.1]} 29. Nc6 {[%clk 0:00:47.4]}
29... Rxd1 {[%clk 0:00:36.3]} 30. Ncxe7+ {[%clk 0:00:47.8]} 30... Kf8 {[%clk
0:00:30]} 31. Rxd1 {[%clk 0:00:48]} 31... Qc4 {[%clk 0:00:21.2]} 32. Qc3 {[%clk
0:00:41.6]} 32... Qe2 {[%clk 0:00:20.1]} 33. Rc1 {[%clk 0:00:34.1]} 33... Rd8
{[%clk 0:00:19.1]} 34. Qxe5 {[%clk 0:00:20.7]} 34... Nd3 {[%clk 0:00:18.8]} 35.
Qxg7+ {[%clk 0:00:17.9]} 35... Ke8 {[%clk 0:00:17.8]} 36. Qh8+ {[%clk
0:00:06.6]} 36... Kd7 {[%clk 0:00:17.9]} 37. Qd4+ {[%clk 0:00:08.1]} 37... Ke8
{[%clk 0:00:18]} 38. Qh8+ {[%clk 0:00:07.2]} 38... Kd7 {[%clk 0:00:18.7]} 39.
Qd4+ {[%clk 0:00:07.6]} 39... Ke8 {[%clk 0:00:19.7]} 40. Qc3 {[%clk 0:00:03.7]}
40... Nxc1 {[%clk 0:00:19.7]} 41. Qxc1 {[%clk 0:00:05.5]} 41... Rd1 {[%clk
0:00:19.9]} 42. Nd6+ {[%clk 0:00:04.5]} 42... Kxe7 {[%clk 0:00:20]} 43. Nf5+
{[%clk 0:00:05.7]} 43... Kf8 {[%clk 0:00:19.8]} 44. Ng3 {[%clk 0:00:05.4]} 44...
Rxc1+ {[%clk 0:00:19.7]} 45. Kxc1 {[%clk 0:00:05.8]} 45... Qe1+ {[%clk
0:00:20.9]} 46. Kc2 {[%clk 0:00:06.8]} 46... Qxg3 {[%clk 0:00:22.4]} 0

[Event "Open Nuevo Centro. Jornada 2"]
[Site "Chess.com"]
[Date "2020.06.26"]
[Round "8"]
[White "Macias Pino, Diego"]
[Black "Segarra Martinez, Axel"]
[Result "0-1"]
[WhiteElo "2217"]
[BlackElo "2237"]
[TimeControl "180+2"]
[EndTime "11:59:43 PDT"]
[Termination "Victoria de Alejandrosky por jaque mate"]

1. e4 {[%clk 0:03:01.3]} 1... e6 {[%clk 0:03:01.2]} 2. d4 {[%clk 0:02:49.5]}
2... d5 {[%clk 0:03:02.5]} 3. Nd2 {[%clk 0:02:51]} 3... Nf6 {[%clk 0:03:03]} 4.
e5 {[%clk 0:02:51.9]} 4... Nfd7 {[%clk 0:03:04.1]} 5. f4 {[%clk 0:02:53.4]} 5...
c5 {[%clk 0:03:06]} 6. c3 {[%clk 0:02:54.7]} 6... Nc6 {[%clk 0:03:07.9]} 7. Ndf3
{[%clk 0:02:54.1]} 7... cxd4 {[%clk 0:03:05.1]} 8. cxd4 {[%clk 0:02:56]} 8...
Qb6 {[%clk 0:03:02.2]} 9. a3 {[%clk 0:02:56.1]} 9... f6 {[%clk 0:02:55.2]} 10.
Bd3 {[%clk 0:02:55.8]} 10... Be7 {[%clk 0:02:55.6]} 11. Ne2 {[%clk 0:02:55.4]}
11... fxe5 {[%clk 0:02:56.7]} 12. dxe5 {[%clk 0:02:55.8]} 12... O-O {[%clk
0:02:56.4]} 13. b4 {[%clk 0:02:45.3]} 13... a5 {[%clk 0:02:40.1]} 14. b5 {[%clk
0:02:45.5]} 14... Na7 {[%clk 0:02:41.1]} 15. a4 {[%clk 0:02:45.8]} 15... Bb4+
{[%clk 0:02:37.3]} 16. Bd2 {[%clk 0:02:41.7]} 16... Nc5 {[%clk 0:02:38.5]} 17.
Bxb4 {[%clk 0:02:39.2]} 17... axb4 {[%clk 0:02:35.2]} 18. Bc2 {[%clk 0:02:38.4]}
18... b3 {[%clk 0:02:10.8]} 19. Bxb3 {[%clk 0:02:36]} 19... Nxb5 {[%clk
0:02:11.8]} 20. Bc2 {[%clk 0:02:27.8]} 20... Ne4 {[%clk 0:02:00.7]} 21. Bxe4
{[%clk 0:02:11.9]} 21... dxe4 {[%clk 0:02:02.6]} 22. Ng5 {[%clk 0:02:13]} 22...
Qa5+ {[%clk 0:01:50.4]} 23. Qd2 {[%clk 0:01:47.1]} 23... e3 {[%clk 0:01:42.9]}
24. Qxa5 {[%clk 0:01:46.9]} 24... Rxa5 {[%clk 0:01:43.8]} 25. O-O {[%clk
0:01:47.9]} 25... Nc7 {[%clk 0:01:44.2]} 26. Nc3 {[%clk 0:01:43.2]} 26... Bd7
{[%clk 0:01:39.6]} 27. Rae1 {[%clk 0:01:25]} 27... Bxa4 {[%clk 0:01:26.8]} 28.
Rxe3 {[%clk 0:01:25.4]} 28... Bc6 {[%clk 0:01:24.5]} 29. Nge4 {[%clk 0:01:21.4]}
29... b5 {[%clk 0:01:17.2]} 30. Ne2 {[%clk 0:00:53]} 30... Nd5 {[%clk
0:01:14.4]} 31. Rg3 {[%clk 0:00:46.2]} 31... b4 {[%clk 0:01:04.5]} 32. Nd4
{[%clk 0:00:37.6]} 32... Bd7 {[%clk 0:01:05.5]} 33. f5 {[%clk 0:00:30.1]} 33...
exf5 {[%clk 0:01:02]} 34. e6 {[%clk 0:00:31.4]} 34... fxe4 {[%clk 0:00:57.8]}
35. Rxf8+ {[%clk 0:00:22.1]} 35... Kxf8 {[%clk 0:00:59.7]} 36. exd7 {[%clk
0:00:23.7]} 36... Ra8 {[%clk 0:00:34.3]} 37. Nc6 {[%clk 0:00:22.4]} 37... e3
{[%clk 0:00:30.6]} 38. Rf3+ {[%clk 0:00:22]} 38... Kg8 {[%clk 0:00:22.5]} 39.
Rf1 {[%clk 0:00:22.9]} 39... Nc3 {[%clk 0:00:16.7]} 40. Re1 {[%clk 0:00:20.4]}
40... e2 {[%clk 0:00:14.6]} 41. Kf2 {[%clk 0:00:17.7]} 41... b3 {[%clk 0:00:15]}
42. Rc1 {[%clk 0:00:13]} 42... b2 {[%clk 0:00:14.7]} 43. Rxc3 {[%clk 0:00:13.1]}
43... b1=Q {[%clk 0:00:15.6]} 44. Ne7+ {[%clk 0:00:10.7]} 44... Kf7 {[%clk
0:00:16.1]} 45. Rc8 {[%clk 0:00:10]} 45... e1=Q+ {[%clk 0:00:16.2]} 46. Kf3
{[%clk 0:00:11.2]} 46... Qbe4# {[%clk 0:00:17]} 0

[Event "Open Nuevo Centro. Jornada 2"]
[Site "Chess.com"]
[Date "2020.06.26"]
[Round "8"]
[White "Sanchis Bon, Sergi"]
[Black "Cinà Asensio, Luca "]
[Result "1-0"]
[WhiteElo "959"]
[BlackElo "618"]
[TimeControl "180+2"]
[EndTime "11:59:56 PDT"]
[Termination "Victoria de Sergi_2011 por jaque mate"]

1. e4 {[%clk 0:03:00.8]} 1... e6 {[%clk 0:03:01]} 2. e5 {[%clk 0:02:55.8]} 2...
Nc6 {[%clk 0:02:58.1]} 3. Nf3 {[%clk 0:02:55.4]} 3... d6 {[%clk 0:02:53.8]} 4.
exd6 {[%clk 0:02:49.2]} 4... Qxd6 {[%clk 0:02:55.7]} 5. Nc3 {[%clk 0:02:40.8]}
5... Qd8 {[%clk 0:02:49.5]} 6. g3 {[%clk 0:02:35.8]} 6... Bb4 {[%clk 0:02:47.4]}
7. Bg2 {[%clk 0:02:35.2]} 7... Bxc3 {[%clk 0:02:45.5]} 8. dxc3 {[%clk
0:02:31.9]} 8... Nge7 {[%clk 0:02:38.3]} 9. Qxd8+ {[%clk 0:02:25.7]} 9... Nxd8
{[%clk 0:02:34.1]} 10. O-O {[%clk 0:02:21.4]} 10... O-O {[%clk 0:02:32.4]} 11.
Nh4 {[%clk 0:02:09.8]} 11... h6 {[%clk 0:02:29.4]} 12. f4 {[%clk 0:02:05.9]}
12... Nd5 {[%clk 0:02:27]} 13. Be3 {[%clk 0:02:05.5]} 13... Nxe3 {[%clk
0:02:22.7]} 14. Rf2 {[%clk 0:02:04.2]} 14... Nxg2 {[%clk 0:02:22.1]} 15. Kxg2
{[%clk 0:02:03.5]} 15... Bd7 {[%clk 0:02:17.7]} 16. g4 {[%clk 0:02:02.9]} 16...
Bc6+ {[%clk 0:02:15.8]} 17. Kg3 {[%clk 0:02:01.9]} 17... b6 {[%clk 0:02:10]} 18.
g5 {[%clk 0:02:02.1]} 18... hxg5 {[%clk 0:02:10]} 19. fxg5 {[%clk 0:02:01.8]}
19... Nb7 {[%clk 0:02:03.9]} 20. g6 {[%clk 0:02:01.3]} 20... fxg6 {[%clk
0:02:01.8]} 21. Rxf8+ {[%clk 0:02:00.9]} 21... Rxf8 {[%clk 0:02:03.7]} 22. Nxg6
{[%clk 0:02:01.1]} 22... Rf3+ {[%clk 0:02:03.3]} 23. Kg4 {[%clk 0:02:00.1]}
23... Kf7 {[%clk 0:02:02.1]} 24. Ne5+ {[%clk 0:01:57.9]} 24... Kf6 {[%clk
0:01:59.3]} 25. Nxf3 {[%clk 0:01:57.3]} 25... Bxf3+ {[%clk 0:02:01.2]} 26. Kxf3
{[%clk 0:01:56.5]} 26... e5 {[%clk 0:01:57.9]} 27. Rf1 {[%clk 0:01:53.4]} 27...
Ke6 {[%clk 0:01:57]} 28. Rg1 {[%clk 0:01:51.8]} 28... Kf7 {[%clk 0:01:52.6]} 29.
Ke4 {[%clk 0:01:51.2]} 29... Nd6+ {[%clk 0:01:51]} 30. Kxe5 {[%clk 0:01:51]}
30... Nc4+ {[%clk 0:01:51]} 31. Kf5 {[%clk 0:01:47.6]} 31... Ne3+ {[%clk
0:01:48]} 32. Ke5 {[%clk 0:01:45.5]} 32... Nc4+ {[%clk 0:01:42.7]} 33. Kf4
{[%clk 0:01:43.2]} 33... Kf6 {[%clk 0:01:37.8]} 34. b3 {[%clk 0:01:30.4]} 34...
g5+ {[%clk 0:01:35.8]} 35. Rxg5 {[%clk 0:01:27.3]} 35... Ke6 {[%clk 0:01:34.8]}
36. Ke4 {[%clk 0:01:23.9]} 36... Nd6+ {[%clk 0:01:31.2]} 37. Kd4 {[%clk
0:01:23.5]} 37... Nf7 {[%clk 0:01:27.2]} 38. Rh5 {[%clk 0:01:22.1]} 38... Nd6
{[%clk 0:01:22.3]} 39. Ke3 {[%clk 0:01:20.7]} 39... Nf5+ {[%clk 0:01:21.1]} 40.
Ke4 {[%clk 0:01:19.7]} 40... Ng7 {[%clk 0:01:16.8]} 41. Rh6+ {[%clk 0:01:19]}
41... Kf7 {[%clk 0:01:15.1]} 42. Rh7 {[%clk 0:01:17.2]} 42... Kg6 {[%clk
0:01:13.8]} 43. Rxg7+ {[%clk 0:01:16.9]} 43... Kxg7 {[%clk 0:01:13.3]} 44. Kd5
{[%clk 0:01:18]} 44... Kf7 {[%clk 0:01:11.5]} 45. c4 {[%clk 0:01:18.1]} 45...
Ke7 {[%clk 0:01:12.5]} 46. a4 {[%clk 0:01:18.6]} 46... Kd7 {[%clk 0:01:14.4]}
47. b4 {[%clk 0:01:18.5]} 47... Kc8 {[%clk 0:01:14.3]} 48. b5 {[%clk 0:01:19.1]}
48... Kb7 {[%clk 0:01:13.2]} 49. h3 {[%clk 0:01:16.3]} 49... Kc8 {[%clk
0:01:12.4]} 50. Kc6 {[%clk 0:01:16.9]} 50... Kd8 {[%clk 0:01:12.2]} 51. Kb7
{[%clk 0:01:17.1]} 51... Kd7 {[%clk 0:01:10.7]} 52. Kxa7 {[%clk 0:01:17.5]}
52... Ke7 {[%clk 0:01:10.3]} 53. Kb8 {[%clk 0:01:17.1]} 53... Kd7 {[%clk
0:01:10.2]} 54. Kb7 {[%clk 0:01:17.6]} 54... Kd8 {[%clk 0:01:09.8]} 55. Kc6
{[%clk 0:01:18]} 55... Kc8 {[%clk 0:01:10.2]} 56. c5 {[%clk 0:01:18]} 56... bxc5
{[%clk 0:01:08.5]} 57. Kxc5 {[%clk 0:01:18.9]} 57... Kb7 {[%clk 0:01:08.7]} 58.
h4 {[%clk 0:01:18.9]} 58... Kc8 {[%clk 0:01:08.6]} 59. a5 {[%clk 0:01:18.5]}
59... Kd8 {[%clk 0:01:03]} 60. a6 {[%clk 0:01:18.4]} 60... Ke7 {[%clk
0:01:02.3]} 61. a7 {[%clk 0:01:18.3]} 61... Kf6 {[%clk 0:01:02.3]} 62. a8=Q
{[%clk 0:01:17.6]} 62... Kf5 {[%clk 0:01:01.9]} 63. Qh1 {[%clk 0:01:16.6]} 63...
Kg4 {[%clk 0:01:01.8]} 64. Qf1 {[%clk 0:01:15.1]} 64... Kxh4 {[%clk 0:01:00.6]}
65. Qg1 {[%clk 0:01:15.4]} 65... Kh5 {[%clk 0:00:56.6]} 66. Kd5 {[%clk
0:01:16.3]} 66... Kh6 {[%clk 0:00:56.4]} 67. Ke5 {[%clk 0:01:16.6]} 67... Kh7
{[%clk 0:00:58.3]} 68. Kf6 {[%clk 0:01:17.1]} 68... Kh6 {[%clk 0:01:00.2]} 69.
Qh1# {[%clk 0:01:17.5]} 1